fUSD/lending_fUSD_20240426
["ID","MTS","AMOUNT","RATE_DAILY","PERIOD"]
[323616892,1714135839672,-500.0,0.00011898,2]
[323616894,1714135839681,-500.0,0.00011898,2]
[323616896,1714135839690,-788.72,0.00011898,2]
[323616897,1714135839699,-958.15,0.00011898,2]
[323616899,1714135839708,-500.0,0.00011898,2]
[323616901,1714135839718,-500.0,0.00011898,2]
[323616903,1714135839727,-500.0,0.00011898,2]
[323616905,1714135839735,-628.77,0.00011898,2]
[323616907,1714135839744,-500.0,0.00011898,2]
[323616908,1714135839753,-661.53,0.00011898,2]
[323616910,1714135839762,-296.96465014,0.00011899,2]
[323616912,1714135839772,-500.0,0.00011899,2]
[323616914,1714135839782,-500.0,0.00011899,2]
[323616916,1714135839791,-500.0,0.00011899,2]
[323616917,1714135839799,-500.0,0.00011899,2]
[323616918,1714135839809,-500.0,0.00011899,2]
[323616919,1714135839818,-500.0,0.00011899,2]
[323616920,1714135839828,-503.41759436,0.00011899,2]
[323616921,1714135839838,-500.0,0.00011899,2]
[323616922,1714135839847,-500.0,0.00011899,2]
[323616923,1714135839856,-500.0,0.00011899,2]
[323616924,1714135839866,-504.03399657,0.00011899,2]
[323616925,1714135839875,-500.0,0.00011899,2]
[323616926,1714135839885,-500.0,0.00011899,2]
[323616927,1714135839894,-500.0,0.00011899,2]
[323616928,1714135839903,-500.0,0.00011899,2]
[323616929,1714135839912,-500.0,0.00011899,2]
[323616930,1714135839922,-500.0,0.00011899,2]
[323616931,1714135839931,-500.0,0.00011899,2]
[323616932,1714135839940,-500.0,0.00011899,2]
[323616933,1714135839949,-500.0,0.00011899,2]
[323616934,1714135839958,-500.0,0.00011899,2]
[323616935,1714135839967,-500.0,0.00011899,2]
[323616936,1714135839975,-500.0,0.00011899,2]
[323616937,1714135839985,-500.0,0.00011899,2]
[323616938,1714135839994,-500.0,0.00011899,2]
[323616939,1714135840003,-500.0,0.00011899,2]
[323616940,1714135840012,-500.0,0.00011899,2]
[323616941,1714135840021,-500.0,0.00011899,2]
[323616942,1714135840032,-500.0,0.00011899,2]
[323616943,1714135840041,-500.0,0.00011899,2]
[323616944,1714135840050,-502.42259762,0.00011899,2]
[323616945,1714135840059,-501.0,0.00011899,2]
[323616946,1714135840068,-500.0,0.00011899,2]
[323616947,1714135840077,-500.0,0.00011899,2]
[323616948,1714135840087,-500.0,0.00011899,2]
[323616949,1714135840096,-500.0,0.00011899,2]
[323616950,1714135840105,-500.0,0.00011899,2]
[323616951,1714135840114,-551.30708598,0.00011899,2]
[323616952,1714135840123,-500.0,0.00011899,2]
[323616953,1714135840132,-500.0,0.00011899,2]
[323616954,1714135840141,-500.0,0.00011899,2]
[323616955,1714135840150,-500.0,0.00011899,2]
[323616956,1714135840159,-500.0,0.00011899,2]
[323616957,1714135840167,-500.0,0.00011899,2]
[323616958,1714135840177,-500.0,0.00011899,2]
[323616959,1714135840186,-854.07,0.00011899,2]
[323616960,1714135840195,-500.0,0.00011899,2]
[323616961,1714135840204,-500.0,0.00011899,2]
[323616962,1714135840214,-500.0,0.00011899,2]
[323616964,1714135840223,-500.0,0.00011899,2]
[323616965,1714135840231,-500.0,0.00011899,2]
[323616966,1714135840240,-500.0,0.00011899,2]
[323616967,1714135840249,-500.0,0.00011899,2]
[323616968,1714135840258,-1139.88,0.00011899,2]
[323616969,1714135840267,-899.52,0.00011899,2]
[323616970,1714135840276,-220.74371321,0.00011899,2]
[323616971,1714135840286,-701.19,0.00011899,2]
[323616972,1714135840294,-1023.23,0.00011899,2]
[323616973,1714135840303,-500.0,0.00011899,2]
[323616974,1714135840312,-560.3005182,0.00011899,2]
[323616975,1714135840321,-867.3,0.00011899,2]
[323616976,1714135840330,-500.0,0.00011899,2]
[323616977,1714135840340,-500.0,0.00011899,2]
[323616978,1714135840349,-500.0,0.00011899,2]
[323616979,1714135840358,-500.0,0.00011899,2]
[323616980,1714135840367,-500.0,0.00011899,2]
[323616981,1714135840376,-500.0,0.00011899,2]
[323616982,1714135840385,-500.0,0.00011899,2]
[323616983,1714135840394,-319.06478297,0.00011899,2]
[323616984,1714135840404,-500.0,0.00011899,2]
[323616985,1714135840413,-500.0,0.00011899,2]
[323616986,1714135840422,-512.25,0.00011899,2]
[323616987,1714135840431,-500.0,0.00011899,2]
[323616988,1714135840440,-500.0,0.00011899,2]
[323616989,1714135840449,-500.0,0.00011899,2]
[323616990,1714135840458,-500.0,0.00011899,2]
[323616991,1714135840467,-786.41,0.00011899,2]
[323616992,1714135840476,-500.0,0.00011899,2]
[323616993,1714135840485,-806.69,0.00011899,2]
[323616994,1714135840494,-1066.91,0.00011899,2]
[323616995,1714135840503,-500.0,0.00011899,2]
[323616996,1714135840512,-500.0,0.00011899,2]
[323616997,1714135840521,-500.0,0.00011899,2]
[323616998,1714135840530,-701.29,0.00011899,2]
[323616999,1714135840539,-500.0,0.00011899,2]
[323617000,1714135840548,-500.0,0.00011899,2]
[323617001,1714135840557,-502.49270932,0.00011899,2]
[323617002,1714135840567,-500.0,0.00011899,2]
[323617003,1714135840576,-500.0,0.00011899,2]
[323617004,1714135840585,-500.0,0.00011899,2]
[323617005,1714135840594,-207.13006511,0.00011899,2]
[323617006,1714135840604,-500.0,0.00011899,2]
[323617007,1714135840613,-500.0,0.00011899,2]
[323617008,1714135840622,-500.0,0.00011899,2]
[323617009,1714135840632,-500.0,0.00011899,2]
[323617010,1714135840641,-500.0,0.00011899,2]
[323617011,1714135840650,-659.86,0.00011899,2]
[323617012,1714135840660,-1049.71,0.00011899,2]
[323617013,1714135840669,-500.0,0.00011899,2]
[323617014,1714135840679,-1064.82,0.00011899,2]
[323617015,1714135840688,-500.0,0.00011899,2]
[323617016,1714135840697,-500.0,0.00011899,2]
[323617017,1714135840707,-500.0,0.00011899,2]
[323617018,1714135840717,-500.0,0.00011899,2]
[323617019,1714135840727,-500.0,0.00011899,2]
[323617020,1714135840736,-500.0,0.00011899,2]
[323617021,1714135840745,-500.0,0.00011899,2]
[323617022,1714135840754,-500.0,0.00011899,2]
[323617023,1714135840764,-842.15,0.00011899,2]
[323617024,1714135840774,-535.88760623,0.00011899,2]
[323617025,1714135840784,-780.31,0.00011899,2]
[323617026,1714135840793,-500.0,0.00011899,2]
[323617027,1714135840802,-500.0,0.00011899,2]
[323617028,1714135840811,-500.0,0.00011899,2]
[323617029,1714135840821,-500.0,0.00011899,2]
[323617030,1714135840830,-500.0,0.00011899,2]
[323617031,1714135840842,-500.0,0.00011899,2]
[323617032,1714135840851,-500.0,0.00011899,2]
[323617033,1714135840860,-500.0,0.00011899,2]
[323617034,1714135840869,-500.0,0.00011899,2]
[323617035,1714135840878,-500.0,0.00011899,2]
[323617036,1714135840887,-378.44109666,0.00011899,2]
[323617037,1714135840898,-543.47247438,0.00011899,2]
[323617038,1714135840906,-500.0,0.00011899,2]
[323617039,1714135840916,-504.25781961,0.00011899,2]
[323617040,1714135840926,-500.0,0.00011899,2]
[323617041,1714135840935,-619.97,0.00011899,2]
[323617042,1714135840944,-591.38863074,0.00011899,2]
[323617043,1714135840953,-514.48724525,0.00011899,2]
[323617044,1714135840963,-500.0,0.00011899,2]
[323617045,1714135840972,-500.0,0.00011899,2]
[323617046,1714135840982,-500.0,0.00011899,2]
[323617047,1714135840991,-500.0,0.00011899,2]
[323617048,1714135841000,-500.0,0.00011899,2]
[323617049,1714135841010,-500.0,0.00011899,2]
[323617050,1714135841021,-502.64267336,0.00011899,2]
[323617051,1714135841030,-500.0,0.00011899,2]
[323617052,1714135841040,-500.0,0.00011899,2]
[323617053,1714135841049,-911.37,0.00011899,2]
[323617054,1714135841059,-505.0816111,0.00011899,2]
[323617055,1714135841068,-500.0,0.00011899,2]
[323617056,1714135841078,-500.0,0.00011899,2]
[323617057,1714135841087,-500.0,0.00011899,2]
[323617058,1714135841097,-577.67666268,0.00011899,2]
[323617059,1714135841108,-500.0,0.00011899,2]
[323617060,1714135841118,-501.47056045,0.00011899,2]
[323617061,1714135841127,-475.52754275,0.00011899,2]
[323617062,1714135841138,-517.88701731,0.00011899,2]
[323617063,1714135841147,-405.76724503,0.00011899,2]
[323617064,1714135841157,-500.0,0.00011899,2]
[323617065,1714135841167,-500.0,0.00011899,2]
[323617066,1714135841177,-500.0,0.00011899,2]
[323617067,1714135841187,-500.0,0.00011899,2]
[323617068,1714135841196,-500.0,0.00011899,2]
[323617069,1714135841208,-504.51748972,0.00011899,2]
[323617070,1714135841218,-502.15698598,0.00011899,2]
[323617071,1714135841227,-500.0,0.00011899,2]
[323617072,1714135841238,-500.0,0.00011899,2]
[323617073,1714135841247,-500.0,0.00011899,2]
[323617074,1714135841258,-171.68353161,0.00011899,2]
[323617075,1714135841269,-349.76025963,0.00011899,2]
[323617076,1714135841280,-500.0,0.00011899,2]
[323617077,1714135841292,-500.67767276,0.00011899,2]
[323617078,1714135841301,-503.68428005,0.00011899,2]
[323617079,1714135841311,-504.00269152,0.00011899,2]
[323617080,1714135841321,-542.7010503,0.00011899,2]
[323617081,1714135841332,-500.0,0.00011899,2]
[323617082,1714135841342,-500.0,0.00011899,2]
[323617083,1714135841351,-237.03430079,0.00011899,2]
[323617084,1714135841361,-500.0,0.00011899,2]
[323617085,1714135841371,-178.249581,0.00011899,2]
[323617086,1714135841380,-500.0,0.00011899,2]
[323617087,1714135841391,-500.0,0.00011899,2]
[323617088,1714135841400,-500.0,0.00011899,2]
[323617089,1714135841410,-501.22704601,0.00011899,2]
[323617090,1714135841419,-500.0,0.00011899,2]
[323617091,1714135841429,-500.0,0.00011899,2]
[323617092,1714135841438,-500.0,0.00011899,2]
[323617093,1714135841447,-501.68767671,0.00011899,2]
[323617094,1714135841457,-500.0,0.00011899,2]
[323617095,1714135841466,-10111.0167517,0.000119,2]
[323617096,1714135841475,-200.0,0.000119,4]
[323617097,1714135841485,-1000.0,0.000119,2]
[323617098,1714135841496,-2538.59191184,0.000119,2]
[323617099,1714135841505,-1061.362897,0.00011902,2]
[323617100,1714135841514,-500.0,0.00011902,2]
[323617101,1714135841524,-1000.0,0.00011903,2]
[323617102,1714135841535,-500.0,0.00011903,2]
[323617103,1714135841544,-215.0,0.0001191,2]
[323617104,1714135841554,-3077.14169562,0.00011972,2]
[323617105,1714135841563,-13446.8940844,0.0001199,2]
[323617106,1714135841573,-3038.6102911,0.0001199,2]
[323617107,1714135841582,-523.2574472,0.0001199,2]
[323617108,1714135841591,-8408.274861,0.0001199,2]
[323617109,1714135841601,-368.971279,0.0001199,2]
[323617110,1714135841610,-10111.01675166,0.00011991,2]
[323617111,1714135841620,-11578.158399,0.00011992,2]
[323617112,1714135841630,-9709.4227137,0.00011992,2]
[323617113,1714135841639,-2613.2364531,0.00011992,2]
[323617114,1714135841649,-2187.8626152,0.00011992,2]
[323617115,1714135841659,-450.0068467,0.00011992,2]
[323617116,1714135841668,-376.7562462,0.00011992,2]
[323617117,1714135841677,-7231.20383,0.00011992,2]
[323617118,1714135841686,-6054.132799,0.00011992,2]
[323617119,1714135841696,-1022.15603608,0.00011998,2]
[323617120,1714135841705,-404.80228358,0.00011998,2]
[323617121,1714135841715,-155.26821001,0.00011999,2]
[323617122,1714135841724,-2177.25858504,0.00011999,2]
[323617123,1714135841733,-500.0,0.00011999,2]
[323617124,1714135841743,-500.0,0.00011999,2]
[323617125,1714135841752,-500.0,0.00011999,2]
[323617126,1714135841762,-500.0,0.00011999,2]
[323617127,1714135841771,-500.0,0.00011999,2]
[323617128,1714135841780,-500.0,0.00011999,2]
[323617129,1714135841789,-500.0,0.00011999,2]
[323617130,1714135841799,-500.0,0.00011999,2]
[323617131,1714135841808,-500.0,0.00011999,2]
[323617132,1714135841817,-500.0,0.00011999,2]
[323617133,1714135841826,-500.0,0.00011999,2]
[323617134,1714135841837,-528.73323317,0.00011999,2]
[323617135,1714135841846,-774.0,0.00012,2]
[323617136,1714135841855,-235631.1473981,0.00012,5]
[323617137,1714135841871,-6571.10644686,0.00012,5]
[323617138,1714135841883,-2103.79140011,0.00012,5]
[323617139,1714135841894,-1292.04521374,0.00012,5]
[323617140,1714135842410,-1003.93522392,0.00011798,2]
[323617141,1714135842421,-2250.72195,0.00011798,2]
[323617142,1714135842433,-6745.34282608,0.00011798,2]
[323617143,1714135842443,-1110.98418,0.00011999,2]
[323617144,1714135842453,-5143.67299392,0.00012,5]
[323617145,1714135842483,-7065.90878504,0.00012,5]
[323617146,1714135842495,-40481.73097291,0.00012,5]
[323617147,1714135842506,-6482.15653974,0.00012,5]
[323617148,1714135842517,-4151.25026103,0.00012,5]
[323617149,1714135842528,-318326.10349795,0.00012,5]
[323617165,1714135842827,-250.0,0.00012,5]
[323617166,1714135843051,-19787.76687358,0.00012,5]
[323617167,1714135843078,-52375.019407,0.00012,5]
[323617168,1714135843090,-189446.92725061,0.00012,5]
[323617191,1714135845795,-10000.0,0.00011553,2]
[323617193,1714135845805,-500.0,0.00011898,2]
[323617195,1714135845815,-258.35302942,0.00011997,2]
[323617197,1714135845824,-511.07801804,0.00011998,2]
[323617198,1714135845835,-2790.25953464,0.00011998,2]
[323617199,1714135845846,-704.0,0.00012,2]
[323617200,1714135845855,-1276.62516145,0.00012,5]
[323617201,1714135845877,-818.90005,0.00012,5]
[323617202,1714135846035,-279.54626831,0.00012,5]
[323617207,1714135888163,91739.76346857,8.219e-05,2]
[323617208,1714135952147,344.64585884,8.219e-05,2]
[323617209,1714135966165,272.92017727,8.219e-05,2]
[323617213,1714136449643,5011.2936437,0.00025,120]
[323617214,1714136598807,399.9,8.219e-05,2]
[323617215,1714136645758,1010.2,0.00025,120]
[323617234,1714137031904,-258.35302942,8.809e-05,2]
[323617235,1714137031913,-155.0,8.81e-05,2]
[323617236,1714137031923,-4868.82065011,8.81e-05,2]
[323617239,1714137031955,-980.04936889,8.81e-05,2]
[323617240,1714137031970,-1484.05,8.81e-05,2]
[323617241,1714137031983,-7699.42812168,8.81e-05,2]
[323617242,1714137031993,-801.0,8.816e-05,2]
[323617243,1714137032003,-690.63457739,8.817e-05,2]
[323617244,1714137032014,-154.98,9.7e-05,2]
[323617245,1714137032025,-1113.84,9.71e-05,2]
[323617246,1714137032035,-1846.19,9.831e-05,2]
[323617247,1714137032046,-960.54,9.836e-05,2]
[323617248,1714137032057,-558.14,9.837e-05,2]
[323617249,1714137032066,-250.0,9.899e-05,2]
[323617250,1714137032076,-1861.02,9.899e-05,2]
[323617251,1714137032086,-158.36,9.909e-05,2]
[323617252,1714137032096,-150.0,9.917e-05,2]
[323617253,1714137032105,-1500.0,9.918e-05,2]
[323617254,1714137032115,-499.99,9.918e-05,2]
[323617255,1714137032125,-166.43,9.939e-05,2]
[323617256,1714137032135,-341.09,9.958e-05,2]
[323617257,1714137032145,-158.36,9.967e-05,2]
[323617258,1714137032154,-158.36,0.00010024,2]
[323617259,1714137032165,-158.36,0.00010081,2]
[323617260,1714137032174,-158.36,0.00010139,2]
[323617261,1714137032184,-158.36,0.00010196,2]
[323617262,1714137032195,-164.24,0.00010231,2]
[323617263,1714137032207,-158.36,0.00010253,2]
[323617264,1714137032218,-166.83,0.00010262,2]
[323617265,1714137032227,-158.36,0.00010311,2]
[323617266,1714137032236,-158.36,0.00010368,2]
[323617267,1714137032246,-158.36,0.00010425,2]
[323617268,1714137032256,-399.9,0.00010469,2]
[323617269,1714137032265,-154.73,0.00010581,2]
[323617270,1714137032277,-154.73,0.00010589,2]
[323617271,1714137032287,-154.73,0.00010598,2]
[323617272,1714137032296,-154.73,0.00010607,2]
[323617273,1714137032305,-154.73,0.00010616,2]
[323617274,1714137032316,-154.73,0.00010625,2]
[323617275,1714137032325,-154.73,0.00010634,2]
[323617276,1714137032336,-160.11,0.0001085,2]
[323617277,1714137032346,-150.0,0.00010959,2]
[323617278,1714137032355,-200.0,0.00011,2]
[323617279,1714137032365,-2750.0,0.00011,3]
[323617280,1714137032376,-960.54,0.00011066,2]
[323617281,1714137032385,-2876.74,0.00011157,2]
[323617282,1714137032395,-210.0,0.0001151,2]
[323617283,1714137032404,-10000.0,0.00011553,2]
[323617284,1714137032414,-11340.0157,0.00011596,2]
[323617285,1714137032424,-783.7129,0.00011597,2]
[323617286,1714137032434,-2500.0,0.00011597,2]
[323617287,1714137032444,-210.0,0.0001164,2]
[323617288,1714137032455,-2805.62007596,0.00011695,2]
[323617289,1714137032467,-296.96465014,0.00011695,2]
[323617290,1714137032476,-404.80228358,0.00011696,2]
[323617291,1714137032486,-155.26821001,0.00011696,2]
[323617292,1714137032497,-500.0,0.00011696,2]
[323617293,1714137032508,-500.0,0.00011696,2]
[323617294,1714137032518,-155.0,0.00011696,2]
[323617295,1714137032529,-500.0,0.00011696,2]
[323617296,1714137032540,-644.7,0.00011696,2]
[323617297,1714137032550,-500.0,0.00011696,2]
[323617298,1714137032560,-500.0,0.00011696,2]
[323617299,1714137032570,-500.0,0.00011696,2]
[323617300,1714137032580,-500.0,0.00011696,2]
[323617301,1714137032590,-500.0,0.00011696,2]
[323617302,1714137032600,-500.0,0.00011696,2]
[323617303,1714137032611,-500.0,0.00011696,2]
[323617304,1714137032620,-500.0,0.00011696,2]
[323617305,1714137032630,-500.0,0.00011696,2]
[323617306,1714137032641,-500.0,0.00011696,2]
[323617307,1714137032651,-500.0,0.00011696,2]
[323617308,1714137032661,-500.0,0.00011696,2]
[323617309,1714137032671,-500.0,0.00011696,2]
[323617310,1714137032680,-500.0,0.00011696,2]
[323617311,1714137032690,-500.0,0.00011696,2]
[323617312,1714137032699,-500.0,0.00011696,2]
[323617313,1714137032709,-500.0,0.00011696,2]
[323617314,1714137032720,-500.0,0.00011696,2]
[323617315,1714137032730,-500.0,0.00011696,2]
[323617316,1714137032739,-503.19336584,0.00011696,2]
[323617317,1714137032749,-500.0,0.00011696,2]
[323617318,1714137032760,-500.0,0.00011696,2]
[323617319,1714137032770,-500.0,0.00011696,2]
[323617320,1714137032781,-500.0,0.00011696,2]
[323617321,1714137032792,-395.03503794,0.00011696,2]
[323617322,1714137032802,-500.0,0.00011696,2]
[323617323,1714137032812,-500.0,0.00011696,2]
[323617324,1714137032823,-578.94,0.00011696,2]
[323617325,1714137032834,-500.0,0.00011696,2]
[323617326,1714137032844,-500.0,0.00011696,2]
[323617327,1714137032855,-500.0,0.00011696,2]
[323617328,1714137032865,-500.0,0.00011696,2]
[323617329,1714137032876,-500.0,0.00011696,2]
[323617330,1714137032887,-500.0,0.00011696,2]
[323617331,1714137032897,-500.0,0.00011696,2]
[323617332,1714137032907,-500.0,0.00011696,2]
[323617333,1714137032918,-1472.51,0.00011696,2]
[323617334,1714137032929,-881.29,0.00011696,2]
[323617335,1714137032939,-500.0,0.00011696,2]
[323617336,1714137032950,-500.0,0.00011696,2]
[323617337,1714137032961,-633.95,0.00011696,2]
[323617338,1714137032971,-500.0,0.00011696,2]
[323617339,1714137032982,-500.0,0.00011696,2]
[323617340,1714137032993,-500.0,0.00011696,2]
[323617341,1714137033003,-503.78602624,0.00011696,2]
[323617342,1714137033014,-508.54,0.00011696,2]
[323617343,1714137033024,-500.0,0.00011696,2]
[323617344,1714137033035,-500.0,0.00011696,2]
[323617345,1714137033044,-763.82,0.00011696,2]
[323617346,1714137033056,-500.0,0.00011696,2]
[323617347,1714137033065,-500.0,0.00011696,2]
[323617348,1714137033075,-885.95,0.00011696,2]
[323617349,1714137033084,-500.0,0.00011696,2]
[323617350,1714137033094,-500.0,0.00011696,2]
[323617351,1714137033103,-500.0,0.00011696,2]
[323617352,1714137033114,-500.0,0.00011696,2]
[323617353,1714137033125,-500.0,0.00011696,2]
[323617354,1714137033137,-500.0,0.00011696,2]
[323617355,1714137033147,-500.0,0.00011696,2]
[323617356,1714137033157,-500.0,0.00011696,2]
[323617357,1714137033167,-500.0,0.00011696,2]
[323617358,1714137033177,-500.0,0.00011696,2]
[323617359,1714137033186,-500.0,0.00011696,2]
[323617360,1714137033196,-500.0,0.00011696,2]
[323617361,1714137033209,-500.0,0.00011696,2]
[323617362,1714137033221,-215.71410786,0.00011696,2]
[323617363,1714137033230,-500.0,0.00011696,2]
[323617364,1714137033239,-502.38181351,0.00011696,2]
[323617365,1714137033250,-500.0,0.00011696,2]
[323617366,1714137033259,-500.0,0.00011696,2]
[323617367,1714137033270,-500.0,0.00011696,2]
[323617368,1714137033288,-500.0,0.00011696,2]
[323617369,1714137033299,-500.0,0.00011696,2]
[323617370,1714137033309,-500.0,0.00011696,2]
[323617371,1714137033321,-27.91083914,0.00011696,2]
[323617372,1714137033344,-469.6349562,0.00011696,2]
[323617373,1714137033354,-502.89103955,0.00011696,2]
[323617374,1714137033363,-500.0,0.00011696,2]
[323617375,1714137033373,-549.5,0.00011696,2]
[323617376,1714137033384,-521.87,0.00011696,2]
[323617377,1714137033394,-500.0,0.00011696,2]
[323617378,1714137033405,-503.94756847,0.00011696,2]
[323617379,1714137033416,-500.0,0.00011696,2]
[323617380,1714137033425,-500.0,0.00011696,2]
[323617381,1714137033435,-500.0,0.00011696,2]
[323617382,1714137033446,-500.0,0.00011696,2]
[323617383,1714137033456,-506.47803651,0.00011696,2]
[323617384,1714137033468,-500.0,0.00011696,2]
[323617385,1714137033477,-500.0,0.00011696,2]
[323617386,1714137033488,-1036.44,0.00011696,2]
[323617387,1714137033497,-500.0,0.00011696,2]
[323617388,1714137033507,-542.16,0.00011696,2]
[323617389,1714137033516,-500.0,0.00011696,2]
[323617390,1714137033526,-500.0,0.00011696,2]
[323617391,1714137033535,-501.8006664,0.00011696,2]
[323617392,1714137033545,-500.0,0.00011696,2]
[323617393,1714137033555,-500.0,0.00011696,2]
[323617394,1714137033564,-500.0,0.00011696,2]
[323617395,1714137033574,-500.0,0.00011696,2]
[323617396,1714137033583,-500.0,0.00011696,2]
[323617397,1714137033593,-500.0,0.00011696,2]
[323617398,1714137033602,-500.0,0.00011696,2]
[323617399,1714137033611,-637.0,0.00011696,2]
[323617400,1714137033621,-500.0,0.00011696,2]
[323617401,1714137033631,-500.0,0.00011696,2]
[323617402,1714137033641,-501.16160685,0.00011696,2]
[323617403,1714137033651,-500.0,0.00011696,2]
[323617404,1714137033660,-500.0,0.00011696,2]
[323617405,1714137033669,-500.0,0.00011696,2]
[323617406,1714137033679,-500.0,0.00011696,2]
[323617407,1714137033688,-500.0,0.00011696,2]
[323617408,1714137033697,-500.0,0.00011696,2]
[323617409,1714137033707,-500.0,0.00011696,2]
[323617410,1714137033718,-500.0,0.00011696,2]
[323617411,1714137033955,-503.49605705,0.00011696,2]
[323617412,1714137033970,-500.0,0.00011696,2]
[323617413,1714137033979,-500.0,0.00011696,2]
[323617414,1714137033989,-500.0,0.00011696,2]
[323617415,1714137033998,-500.0,0.00011696,2]
[323617416,1714137034007,-500.0,0.00011696,2]
[323617417,1714137034018,-500.0,0.00011696,2]
[323617418,1714137034028,-503.62296859,0.00011696,2]
[323617419,1714137034036,-500.0,0.00011696,2]
[323617420,1714137034046,-500.0,0.00011696,2]
[323617421,1714137034055,-713.79,0.00011696,2]
[323617422,1714137034064,-500.0,0.00011696,2]
[323617423,1714137034073,-500.0,0.00011696,2]
[323617424,1714137034083,-500.0,0.00011696,2]
[323617425,1714137034093,-500.0,0.00011696,2]
[323617426,1714137034102,-1086.98,0.00011696,2]
[323617427,1714137034111,-500.0,0.00011696,2]
[323617428,1714137034120,-861.65,0.00011696,2]
[323617429,1714137034129,-500.0,0.00011696,2]
[323617430,1714137034138,-500.0,0.00011696,2]
[323617431,1714137034148,-500.0,0.00011696,2]
[323617432,1714137034157,-500.0,0.00011696,2]
[323617433,1714137034166,-500.0,0.00011696,2]
[323617434,1714137034176,-108.07710038,0.00011696,2]
[323617435,1714137034189,-391.92289962,0.00011696,2]
[323617436,1714137034201,-504.86699839,0.00011696,2]
[323617437,1714137034210,-500.0,0.00011696,2]
[323617438,1714137034221,-766.01,0.00011696,2]
[323617439,1714137034231,-500.0,0.00011696,2]
[323617440,1714137034241,-500.0,0.00011696,2]
[323617441,1714137034250,-509.99026299,0.00011696,2]
[323617442,1714137034260,-503.15952537,0.00011696,2]
[323617443,1714137034269,-57.20759565,0.00011696,2]
[323617444,1714137034281,-442.79240435,0.00011696,2]
[323617445,1714137034292,-505.47262703,0.00011696,2]
[323617446,1714137034301,-500.0,0.00011696,2]
[323617447,1714137034311,-500.0,0.00011696,2]
[323617448,1714137034320,-500.0,0.00011696,2]
[323617449,1714137034329,-513.35602551,0.00011696,2]
[323617450,1714137034339,-565.29,0.00011696,2]
[323617451,1714137034348,-511.24134566,0.00011696,2]
[323617452,1714137034357,-991.85,0.00011696,2]
[323617453,1714137034367,-526.18216902,0.00011696,2]
[323617454,1714137034377,-505.15100647,0.00011696,2]
[323617455,1714137034387,-509.53298795,0.00011696,2]
[323617456,1714137034396,-511.6691002,0.00011696,2]
[323617457,1714137034406,-502.33084879,0.00011696,2]
[323617458,1714137034416,-482.83878724,0.00011696,2]
[323617459,1714137034425,-505.18036629,0.00011696,2]
[323617460,1714137034435,-500.0,0.00011696,2]
[323617461,1714137034444,-287.59440309,0.00011696,2]
[323617462,1714137034453,-500.0,0.00011696,2]
[323617463,1714137034463,-501.97284439,0.00011696,2]
[323617464,1714137034473,-500.0,0.00011696,2]
[323617465,1714137034482,-506.98571143,0.00011696,2]
[323617466,1714137034491,-500.0,0.00011696,2]
[323617467,1714137034500,-506.86153095,0.00011696,2]
[323617468,1714137034510,-435.10102923,0.00011696,2]
[323617469,1714137034519,-496.29622222,0.00011696,2]
[323617470,1714137034528,-509.66824426,0.00011696,2]